Cogmind - Beta 15 @@@ ROGUE MODE // 2025.06.28 @ 00:27:35 Player: Occam Result: Destroyed by 4W-Z5R(R) with Subdweller Beam Cannon Performance ------------- Evolutions (0) 0 Regions Visited (2) 400 Robots Destroyed (43) 215 Value Destroyed (890) 890 Prototype IDs (11) 220 Alien Tech Used (0) 0 Bonus (0) 0 TOTAL SCORE: 1725 Bonus ------- None Cogmind --------- Core Integrity 0/250 Matter 219/300 Energy 229/250 System Corruption 0% Temperature Cool (9) Movement Core (1650) Ox32 Location -10/Subcaves Parts ------- > --- POWER (1) -------- Ion Engine > --- PROPULSION (2) --- Spiked Treads > --- UTILITY (2) ------ Huge Storage Unit Structural Scanner > --- WEAPON (2) ------- Light Cannon Subdweller Shrapnel Launcher > --- INVENTORY (25) --- Ion Engine Neutrino Core Wheel Subdweller Monowheel Small Storage Unit High-capacity Matter Pod (200) Structural Scanner Improved Terrain Scanner Light Armor Plating Scrap Shield Hacking Suite Heavy Riot Gun Subdweller Laser Subdweller Laser Assault Rifle Battle Rifle Bore Cannon Grenade Launcher Datajack Mining Laser Multitool Makeshift Hammer Shrapnel Trap Peak State ------------ > --- POWER ------------ Ion Engine > --- PROPULSION ------- Spiked Treads Wheel > --- UTILITY ---------- Huge Storage Unit Targeting Computer > --- WEAPON ----------- Light Cannon Bore Cannon > --- INVENTORY -------- Ion Engine Neutrino Core Wheel Subdweller Monowheel Small Storage Unit High-capacity Matter Pod Structural Scanner Structural Scanner Improved Terrain Scanner Light Armor Plating Scrap Shield Hacking Suite Medium Laser Subdweller Laser Subdweller Laser Assault Rifle Battle Rifle Grenade Launcher Subdweller Shrapnel Launcher Datajack Mining Laser Multitool Makeshift Hammer Shrapnel Trap [Rating: 16] Favorites ----------- Power Light Ion Engine Engine Light Ion Engine Propulsion Light Treads Treads Light Treads Leg Aluminum Leg Wheel Wheel Utility Huge Storage Unit Device Structural Scanner Storage Huge Storage Unit Processor Targeting Computer Protection Utility Shielding Weapon Light Cannon Energy Gun Medium Laser Energy Cannon Subdweller Beam Cannon Ballistic Gun Assault Rifle Ballistic Cannon Light Cannon Launcher Subdweller Shrapnel Launcher Special Weapon Mining Laser Build | -11 -10 -10 ------- Run | Yrd Mat Sub Slots Evolved . | . . . Power . | . . . Propulsion . | . . . Utility . | . . . Weapon . | . . . Parts Attached 27 | 2 13 12 Power 5 | 1 1 3 Engine 5 | 1 1 3 Core . | . . . Reactor . | . . . Propulsion 5 | . 3 2 Treads 3 | . 2 1 Leg . | . . . Wheel 2 | . 1 1 Hover . | . . . Flight . | . . . Utility 7 | 1 5 1 Device 3 | 1 1 1 Storage 1 | . 1 . Processor 1 | . 1 . Hackware . | . . . Protection 2 | . 2 . Artifact . | . . . Weapon 10 | . 4 6 Energy Gun 3 | . 2 1 Energy Cannon 1 | . . 1 Ballistic Gun 1 | . 1 . Ballistic Cannon 2 | . . 2 Launcher 2 | . . 2 Special Weapon 1 | . 1 . Impact Weapon . | . . . Slashing Weapon . | . . . Piercing Weapon . | . . . Special Melee Weapon . | . . . Unidentified Prototypes . | . . . Parts Lost 8 | . 3 5 Power 1 | . . 1 Propulsion 3 | . . 3 Utility 2 | . 2 . Weapon 2 | . 1 1 Highest Loss Streak 4 | . 2 4 To Critical Strikes . | . . . Average Backups 20 | 6 15 22 Power 2 | 1 2 2 Propulsion 1 | 4 1 2 Utility 6 | . 4 7 Weapon 7 | 1 5 8 Tool/Special . | . . . Unused Backups 33 | 5 5 23 Power 3 | . 1 2 Propulsion 7 | 2 3 2 Utility 7 | 1 . 6 Weapon 13 | 2 1 10 Tool/Special 3 | . . 3 Average Slot Usage (%) 95 | . 98 94 Engine 10 | . 14 8 Treads 14 | . 17 13 Wheel 12 | . 8 13 Device 4 | . 2 5 Storage 14 | . 14 14 Processor 8 | . 9 8 Energy Gun 6 | . 17 2 Ballistic Gun 3 | . 10 1 Ballistic Cannon 13 | . . 18 Special Weapon 3 | . . 4 Peak Build Rating 16 | 8 9 16 Average Rating 11 | 6 8 13 On Entrance 7 | 6 8 9 Naked Turns . | . . . Heaviest Build 100 | 14 87 100 Greatest Support 40 | 20 40 16 Greatest Overweight (x) 9 | . 5 9 Average Overweight (x) 6 | . 2 7 Largest Inventory Capacity 25 | 8 25 25 Average Capacity 23 | 8 18 25 Most Carried 25 | 8 24 25 Average Carried 22 | 6 15 24 Final Capacity 25 | 8 25 25 Final Carried 24 | 8 24 24 Class Distribution -------------------- 100% | Mutant Dominant Class ---------------- Mutant | -10/Materials Mutant | -10/Subcaves Resources | -11 -10 -10 ----------- Run | Yrd Mat Sub Matter Collected 1232 | 241 412 579 Remotely . | . . . Salvage Created 1071 | 141 543 387 Parts 76 | 8 42 26 Haulers Intercepted 1 | . 1 . Recyclers Shooed 2 | 1 1 . Parts Field Recycled . | . . . Retrieved Matter . | . . . Parts Self-Destructed 19 | . . 19 Prevented . | . . . Kills | -11 -10 -10 ------- Run | Yrd Mat Sub Combat Hostiles Destroyed 25 | . 8 17 Guns 9 | . 4 5 Cannons 9 | . . 9 AOE 7 | . 4 3 Classes Destroyed 12 | 2 7 3 Worker 4 | . 4 . Builder 3 | . 3 . Tunneler 4 | 2 2 . Hauler 1 | . 1 . Recycler 1 | 1 . . Operator 1 | . 1 . Turret 1 | . . 1 Watcher 3 | . 3 . Swarmer 9 | . 3 6 Grunt 5 | . 5 . Sentry 1 | . . 1 Subdweller 10 | . . 10 Best Kill Streak 6 | 2 6 4 Combat Bots Only 5 | . 5 4 Max Kills in Single Turn 3 | 1 3 3 Gunslinging . | . . . Exploded 3 | . 2 3 Melee . | . . . Uniques/NPCs Destroyed . | . . . Combat | -11 -10 -10 -------- Run | Yrd Mat Sub Hostile Shots Fired 123 | . 53 70 Missed 32 | . 13 19 Hits 91 | . 40 51 Projectile 91 | . 40 51 AOE 9 | . . 9 Damage Taken 1556 | . 557 999 Core 274 | . 89 185 Absorbed by Shields . | . . . Regen/Repaired (Parts) 137 | . 137 . Core Remaining (%) 100 | 100 . . Volleys Fired 134 | 7 55 72 Largest 2 | 2 2 2 Hottest 150 | 60 150 130 Shots Fired 214 | 14 105 95 Gun 135 | 14 100 21 Cannon 48 | . . 48 Launcher 6 | . . 6 Special 25 | . 5 20 Kinetic 85 | 7 25 53 Thermal 59 | . 22 37 Explosive 5 | . . 5 Electromagnetic 65 | 7 58 . Robot Hit Streak 9 | 3 9 9 Robot Miss Streak 7 | 3 7 2 Penetration Max 1 | . . 1 Secondary Targets . | . . . Shots Hit Robots 103 | 7 48 48 Core Hits 64 | 4 29 31 Critical Kills 6 | . . 6 Critical Parts Destroyed 2 | . 1 1 Critical Strikes 14 | . 2 12 Destroy 13 | . 1 12 Corrupt 1 | . 1 . Melee Attacks . | . . . Impact . | . . . Slashing . | . . . Piercing . | . . . Sneak Attacks . | . . . Combat Hostiles . | . . . Follow-up Attacks . | . . . Damage Inflicted 2257 | 145 1003 1109 Guns 920 | 97 631 192 Cannons 608 | . . 608 Explosions 705 | 48 372 285 Melee . | . . . Ramming . | . . . Kinetic 1000 | 57 171 772 Thermal 739 | 48 472 219 Explosive 118 | . . 118 Electromagnetic 400 | 40 360 . Impact . | . . . Slashing . | . . . Piercing . | . . . Highest Corruption . | . . . Average Corruption . | . . . Corruption Purged . | . . . Corruption Blocked . | . . . Overload Shots . | . . . Overflow Damage . | . . . Projectiles . | . . . Explosions . | . . . Melee . | . . . Knockbacks 10 | . . 10 Impact . | . . . Kinetic 10 | . . 10 Secondary . | . . . Self-Inflicted Damage 31 | . 31 . Shots 3 | . 3 . Rammed . | . . . Targets Rammed . | . . . Kicked . | . . . Crushed . | . . . Highest Temperature 294 | 20 294 16 Average Temperature 77 | 20 83 9 Received Heat Transfer 306 | . 210 96 Siege Activations . | . . . Martial Activations . | . . . Shielding Activations . | . . . Robots Disrupted . | . . . Combat Hostiles . | . . . Robots Corrupted . | . . . Combat Hostiles . | . . . Parts Fried . | . . . Impact Corruptions . | . . . Robots Melted . | . . . Combat Hostiles . | . . . Parts Melted 2 | . 1 1 Heat Transferred 1155 | . 746 409 Parts Sabotaged . | . . . Parts Stolen . | . . . Parts Stripped . | . . . Power Chain Reactions 5 | 1 4 . Alert | -11 -10 -10 ------- Run | Yrd Mat Sub Maximum Alert Level . | . . . Low Security (%) 100 | 100 100 . Level 1 . | . . . Level 2 . | . . . Level 3 . | . . . Level 4 . | . . . Level 5 . | . . . High Security . | . . . Max Security . | . . . Peak Influence 125 | 10 125 . Initial . | . . . Average 17 | 1 18 . Influence Increases 578 | 15 333 230 Destroy 0b10 Robot/C 320 | . 160 160 Destroy 0b10 Robot/NC 85 | 15 70 . Destroy Leader 58 | . 48 10 Successful Hack 33 | . 33 . Disable Machine 15 | . 15 . Destroy Structure 7 | . 7 . Lose Combat Pursuer 60 | . . 60 Influence Decreases 527 | 15 333 179 Time Decay 487 | 15 303 169 Lost Part 40 | . 30 10 Squads Dispatched 2 | . 2 . Investigation 2 | . 2 . Extermination . | . . . Reinforcement . | . . . Assault . | . . . Garrison . | . . . Intercept . | . . . Searches Triggered . | . . . Construction Impeded . | . . . Haulers Reinforced . | . . . Active Scanning Responses . | . . . Cargo Convoy Interrupts . | . . . Stealth | -11 -10 -10 --------- Run | Yrd Mat Sub Distress Signals 2 | . 2 . Communications Jammed . | . . . Distress Signals . | . . . Times Spotted 40 | . 15 25 Peak Tracking Total 6 | . 6 6 Tactical Retreats 2 | . . 2 Traps | -11 -10 -10 ------- Run | Yrd Mat Sub Traps Triggered 3 | . 2 1 Indirectly . | . . . Trap Hack Attempts . | . . . Triggered . | . . . Disarmed . | . . . Reprogrammed . | . . . Reused . | . . . Traps Extracted . | . . . Installed . | . . . Triggered . | . . . Most Traps Carried 1 | . . 1 Machines | -11 -10 -10 ---------- Run | Yrd Mat Sub Machines Disabled 3 | . 1 2 Max in Single Turn 1 | . 1 1 Machines Repaired . | . . . Machines Dismantled . | . . . Machines Sabotaged . | . . . Overloaded Fab Kills . | . . . Hacking | -11 -10 -10 --------- Run | Yrd Mat Sub Machines Accessed 8 | . 7 1 Terminals 6 | . 6 . Fabricators . | . . . Repair Stations 1 | . 1 . Recycling Units . | . . . Scanalyzers . | . . . Garrison Access . | . . . Total Hacks 23 | . 22 1 Successful 13 | . 12 1 Failed 9 | . 9 . Catastrophic 1 | . 1 . Database Lockouts 1 | . 1 . Manual 16 | . 16 . Terminals 18 | . 18 . Fabricators . | . . . Repair Stations 4 | . 4 . Recycling Units . | . . . Scanalyzers . | . . . Garrison Access . | . . . Terminal Hacks 6 | . 5 1 Robot Analysis 1 | . 1 . Terminal Index 1 | . 1 . Alert Level 1 | . 1 . Locate Traps 1 | . 1 . Hauler Manifests 1 | . 1 . Proto ID Catalog 1 | . . 1 Fabricator Hacks . | . . . Repair Station Hacks 4 | . 4 . Scan Component 2 | . 2 . Repair 2 | . 2 . Recycling Unit Hacks . | . . . Scanalyzer . | . . . Garrison Access Hacks . | . . . Unauthorized Hacks 3 | . 3 . Terminals 3 | . 3 . Botnet 2 | . 2 . Operators 1 | . 1 . Fabricators . | . . . Repair Stations . | . . . Recycling Units . | . . . Scanalyzers . | . . . Garrison Access . | . . . Data Cores Recovered . | . . . Used . | . . . Hacking Detections 5 | . 5 . Full Trace Events 1 | . 1 . Feedback Events . | . . . Feedback Blocked . | . . . Robot Schematics Acquired . | . . . Robots Built . | . . . Authchips . | . . . Time . | . . . Total Robot Build Rating . | . . . Part Schematics Acquired . | . . . Parts Built . | . . . Authchips . | . . . Time . | . . . Total Part Build Rating . | . . . Parts Repaired 2 | . 2 . Time 52 | . 52 . Parts Recycled . | . . . Recycled Matter . | . . . Retrieved Matter . | . . . Retrieved Components . | . . . Parts Scanalyzed . | . . . Part Schematics Acquired . | . . . Parts Damaged . | . . . Bothacking | -11 -10 -10 ------------ Run | Yrd Mat Sub Used RIF Installer . | . . . Robots Hacked . | . . . Non-combat . | . . . Combat . | . . . Robot Hacks Applied . | . . . Relay Couplers Released . | . . . Fabnet Peak Effective % . | . . . Robots Rewired . | . . . Allies Hacked . | . . . Hacks Repelled . | . . . Allies | -11 -10 -10 -------- Run | Yrd Mat Sub Total Allies . | . . . Largest Group . | . . . Highest-Rated Group . | . . . Highest-Rated Ally . | . . . Total Orders . | . . . Ally Attacks . | . . . Total Damage . | . . . Kills . | . . . Allies Corrupted . | . . . Allies Melted . | . . . Intel | -11 -10 -10 ------- Run | Yrd Mat Sub Active Infowar (turns) 2178 | 12 296 1870 Structural 1870 | . . 1870 Seismic 308 | 12 296 . Robot Analysis Total 1 | . 1 . Derelict Logs Recovered 1 | . . 1 Drone Launches . | . . . Drone Recoveries . | . . . Exploration | -11 -10 -10 ------------- Run | Yrd Mat Sub Turns Passed 6568 | 80 1596 4892 Spaces Moved 3076 | 20 773 2283 Core . | . . . Treads 259 | . 259 . Legs 76 | 20 56 . Wheels 2741 | . 458 2283 Hover . | . . . Flight . | . . . Fastest Speed 120 | 120 120 175 Average Speed 192 | 120 165 202 Slowest Speed 215 | 120 175 215 Overloaded Moves . | . . . Propulsion Burnouts . | . . . Robots Hopped . | . . . Potential Cave-ins . | . . . Cave-ins Triggered . | . . . Exploration Rate (%) 60 | 4 99 79 Regions Visited 2 Branch Regions 1 Pre-discovered Areas . | . . . Known Exits Taken . | . . . Unknown Exits Taken 2 | 1 1 . Scrap Searched 1 | . . 1 Spaces Dug 1 | . 1 . Terrain Destroyed 45 | 5 7 33 Melee . | . . . Projectile 13 | . 1 12 AOE 32 | 5 6 21 Terrain Rammed . | . . . Walls Destroyed . | . . . Machines Disabled . | . . . Actions | -11 -10 -10 --------- Run | Yrd Mat Sub Total 3450 | 61 972 2417 Wait 128 | 31 92 5 Move 3074 | 19 772 2283 Hop . | . . . Pick Up 40 | 2 24 14 Fast Attach 7 | 1 5 1 Attach 10 | . 4 6 Detach 3 | . 2 1 Swap 32 | 1 8 23 Drop 22 | . 10 12 Fire 134 | 7 55 72 Melee . | . . . Ram . | . . . Kick . | . . . Crush . | . . . Escape Stasis . | . . . Rewire . | . . . Trap . | . . . Miscellaneous . | . . . Route ------- -11/Scrapyard -10/Materials (discovered 5 exits: [*Mat x3] / [*Min] / *Sub) -10/Subcaves (discovered 3 exits: [*Mat x2] / [*Rec]) History --------- Turn | Location | Event 4 | -11/Scrapyard | Discovered new exit (range 2) 81 | -11/Scrapyard | Entered Materials 261 | -10/Materials | Discovered new exit (range 16) 309 | -10/Materials | Build established: Mutant 579 | -10/Materials | Discovered new exit (range 7) 680 | -10/Materials | Central database locked down 865 | -10/Materials | Discovered new exit (range 8) 1152 | -10/Materials | Discovered new exit (range 6) 1434 | -10/Materials | Repaired Lgt. Treads 1462 | -10/Materials | Repaired Lgt. Treads 1670 | -10/Materials | Discovered new exit (range 2) 1677 | -10/Materials | Entered Subcaves 1678 | -10/Subcaves | Approached by a straggling Scientist 1691 | -10/Subcaves | Discovered new exit (range 11) 2009 | -10/Subcaves | Shifting Twisted Machinery released Sub. Laser 2015 | -10/Subcaves | Shifting Twisted Machinery released Battle Rifle 2108 | -10/Subcaves | Discovered new exit (range 10) 2455 | -10/Subcaves | Discovered new exit (range 14) 2510 | -10/Subcaves | Ambushed by Subdweller buried in earth 2514 | -10/Subcaves | Ambushed by Subdweller buried in earth 2514 | -10/Subcaves | Ambushed by Subdweller buried in earth 2522 | -10/Subcaves | Core integrity fell below 50% 2556 | -10/Subcaves | Lost 4 parts (1p2n1w) 2659 | -10/Subcaves | A swath of the cavern ceiling suddenly collapsed 3204 | -10/Subcaves | Learned Materials emergency access door positions 3398 | -10/Subcaves | Curiously followed by a Cobbler waking with a query about "LVR3C" 4375 | -10/Subcaves | A swath of the cavern ceiling suddenly collapsed 6081 | -10/Subcaves | Core integrity fell below 20% 6333 | -10/Subcaves | Visited 4L-MR0's lab 6569 | -10/Subcaves | Destroyed by 4W-Z5R(R) with Subdweller Beam Cannon Last Messages --------------- 06333_ 4L-MR0: "What, already? Ugh, fine! Just take it and go! I only just finished this one... Can't you folks let me experiment with them a little longer before you take them away? 06340_ Connecting with 4L-MR0's Prototype Logs... 06340_ Current location identified: Subcaves >>Proto ID Catalog Downloading prototype IDs... Meta Core Arachnoskeleton Cargo Legs Tripod Weapons Platform Flightbrick Gun Armor Tower Shield Power Bank Rainbow Chip VL-GR5's Exoskeleton "Deathgrip" Powered Cannon 06567_ Wheel destroyed. Map ----- +----------------------------------------------------+ | ?????????????????????????????????????????????????? | | ?????????????????????????????????????????????????? | | ?????????????????????????????????????????????????? | | ?????????????????????????????????????????????????? | | ?????????????????????????????????????????????????? | | ????????????## ?????????????????????????????????? | | ????????????## ?????????????????????????????????? | | ????????????## ?????????????????????????????????? | | ????????????# ????????????????????????????????? | | ??????????#### ????????????????????????????????? | | ??????????##### ????????????????????????????????? | | ??????????## ## ???????????????????????????????? | | ???????????? ??###??????????????????????????? | | ????????????? #####??????????????????????????? | | ?????????????? ## # ??????????????????????????? | | ??????????????## ??????????????????????????? | | ??????????????## ????????????????????????????? | | ???????######?##; R# ##???????????????????????? | | ??????########?### #######??????????????????????? | | ??????### ###??### ####?????????????????????? | | ??????##" ##???## #####???????????????????? | | ??????## ####### ####???????????????????? | | ??????### ####### ##???????????????????? | | ??????#### ######## ##???????????????????? | | ???????#### ######## ##???????????????????? | | ????????### ## ## ####@ ###???????????????????? | | ?????????###### ## ##???????????????????? | | ? ?????##### ##???????????????????? | | ??????### O ###???????????????????? | | # ?????#### ####???????????????????# | | # #???#### ## ###????????????????##### | | # ####?### #### ##?????????????????# | | ^####### #########????????????????# | | ? ###### ## ###???????????????## | | ###### ##???????????????# | | ## # ###?### ###?????????????### | | ######## ######???????????### """# | | ####### ######??????????### | | ###### #######????????????#% # | | #### #########??????????# | | #### ## #####???????### ## | | #### ### ### ###???????# # | | | ### ####### ##???????#### & | | # ###### ###??????????# | | ## ##?#### ####?????????# # | | ## ######### ####??????????#?### | | ## ########### #######???????????????### | | ## ########## #######?????????????????## " | | ###???#### #####????????????????????##" "" | | ####???### ######?####?????????????### ## | +----------------------------------------------------+ Best States ------------- Heat Dissipation 25 Energy Generation 10 Energy Capacity 250 Matter Stores 300 Matter Capacity 300 Sight Range 16 Terrain Scan Density 10 Power Shielding 33 Utility Shielding 33 Evasion (%) 55 Targeting Accuracy 5 Recoil Reduction 2 Item Schematics ----------------- None Robot Schematics ------------------ None Fabricated ------------ Nothing Repaired ---------- Lgt. Treads | 29% | -10/Materials Lgt. Treads | 72% | -10/Materials Alien Tech Used ----------------- None Achievements -------------- None Challenges ------------ None Game ------ Seed ActiveAntimatterSpiker Manual? 0 Play Time 00:32:27 Cumulative 649.3 hours Start 2025.06.27 @ 23:52:43 End 2025.06.28 @ 00:27:35 Sessions 1 Manual Loads 0 Difficulty Rogue Special Mode None Game No. 295 Rogue 151 Adventurer 144 Explorer 0 Win Type - Total 11 Types 4/1/5/1/0/0/0/0/0/0 Lore% 83 Gallery% 80 Achievement% 73 Wizard Run 0 Options --------- Layout 0 ASCII 0 Keyboard 0 Movement Mouse Keybinds 0 Fullscreen 2 Font 20/SmallcapsGlow Map View 66x50 Zoom Use 0% Tactical HUD 1 Map Filters NONE Filters NONE Steam 1 RUN: b3184a5f-757b-40fe-ac87-c10a9bc2b779